bitfinex/quotes_BTCUSD_20260117
["timestamp","ask_amount","ask_price","bid_price","bid_amount"]
[1768610021161,0.0104802,95418.0,95414.0,0.01040179]
[1768610021401,0.01048009,95419.0,95415.0,0.06288318]
[1768610021576,0.01047998,95420.0,95417.0,0.01048031]
[1768610021805,0.01047976,95422.0,95419.0,0.01048009]
[1768610024289,0.13747954,95424.0,95420.0,0.01047998]
[1768610024557,0.127,95424.0,95420.0,0.06287983]
[1768610024781,0.01047932,95426.0,95420.0,0.01047998]
[1768610024952,0.127,95424.0,95420.0,0.06287938]
[1768610025180,0.13747954,95424.0,95420.0,0.01047998]
[1768610026128,0.01047965,95423.0,95419.0,0.01048009]
[1768610026950,0.01047976,95422.0,95419.0,0.01048009]
[1768610027388,0.01047976,95422.0,95418.0,0.0104802]
[1768610027849,0.06287861,95422.0,95418.0,0.0104802]
[1768610027979,0.01047976,95422.0,95419.0,0.01048009]
[1768610028182,0.01047965,95423.0,95419.0,0.01048009]
[1768610028410,0.01047965,95423.0,95420.0,0.01047998]
[1768610028613,0.01047954,95424.0,95420.0,0.01047998]
[1768610028809,0.06287741,95424.0,95420.0,0.01047998]
[1768610029017,0.01047954,95424.0,95420.0,0.01047998]
[1768610029750,0.06287898,95422.0,95418.0,0.0104802]
[1768610030022,0.01047987,95421.0,95418.0,0.0104802]
[1768610030199,0.01047976,95422.0,95418.0,0.0104802]
[1768610030410,0.01047976,95422.0,95418.0,0.06288121]
[1768610030735,0.01047976,95422.0,95417.0,0.01048031]
[1768610030736,0.06287907,95422.0,95417.0,0.01048031]
[1768610030892,0.06287929,95421.0,95417.0,0.01048031]
[1768610031092,0.01047998,95420.0,95417.0,0.01048031]
[1768610031310,0.01047987,95421.0,95418.0,0.0104802]
[1768610031624,0.01047987,95421.0,95417.0,0.06288178]
[1768610031839,0.01047998,95420.0,95417.0,0.01048031]
[1768610032122,0.01047976,95422.0,95418.0,0.0104802]
[1768610032937,0.01047976,95422.0,95418.0,0.06288079]
[1768610033368,0.01047976,95422.0,95419.0,0.01048009]
[1768610033581,0.01047976,95422.0,95419.0,0.01028445]
[1768610033786,0.01047932,95426.0,95422.0,0.01047976]
[1768610034122,0.01047932,95426.0,95419.0,0.01028445]
[1768610034123,0.01047943,95425.0,95421.0,0.01047987]
[1768610034348,0.01047954,95424.0,95421.0,0.01047987]
[1768610034769,0.06287727,95424.0,95421.0,0.01047987]
[1768610034906,0.01047954,95424.0,95421.0,0.01047987]
[1768610036428,0.01047943,95425.0,95421.0,0.06287873]
[1768610036795,0.01047943,95425.0,95421.0,0.01047987]
[1768610037166,0.01047943,95425.0,95421.0,0.06287914]
[1768610038537,0.01047943,95425.0,95421.0,0.01047987]
[1768610039073,0.06287771,95424.0,95418.0,0.06288072]
[1768610039231,0.06287771,95424.0,95418.0,0.0104802]
[1768610039435,0.06287771,95424.0,95418.0,0.06288103]
[1768610039640,0.06287771,95424.0,95419.0,0.05240031]
[1768610040037,0.06287841,95423.0,95419.0,0.01048009]
[1768610040303,0.01047965,95423.0,95419.0,0.01048009]
[1768610040458,0.01047954,95424.0,95420.0,0.01047998]
[1768610040902,0.06287747,95424.0,95420.0,0.01047998]
[1768610042094,0.01047965,95423.0,95419.0,0.06288033]
[1768610042518,0.01047965,95423.0,95419.0,0.01048009]
[1768610043482,0.06287812,95423.0,95419.0,0.01048009]
[1768610043683,0.01047965,95423.0,95419.0,0.01048009]
[1768610044346,0.01047965,95423.0,95419.0,0.0628805]
[1768610044774,0.01047965,95423.0,95420.0,0.06287988]
[1768610044944,0.01047965,95423.0,95419.0,0.01048009]
[1768610045558,0.06287794,95423.0,95419.0,0.01048009]
[1768610045883,0.01047965,95423.0,95419.0,0.01048009]
[1768610046214,0.01047965,95423.0,95419.0,0.06288039]
[1768610046891,0.01047965,95423.0,95420.0,0.01047998]
[1768610047260,0.01047954,95424.0,95420.0,0.06287972]
[1768610047663,0.06287731,95424.0,95420.0,0.01047998]
[1768610048325,0.01047954,95424.0,95420.0,0.01047998]
[1768610048650,0.01047954,95424.0,95421.0,0.01047987]
[1768610048849,0.01047954,95424.0,95420.0,0.01047998]
[1768610048850,0.01047965,95423.0,95420.0,0.01047998]
[1768610049762,0.01047976,95422.0,95417.0,0.01048031]
[1768610049979,0.01047987,95421.0,95417.0,0.01048031]
[1768610050173,0.06287974,95421.0,95417.0,0.0104349]
[1768610050386,0.01048042,95416.0,95413.0,1e-08]
[1768610050595,0.01048031,95417.0,95413.0,0.01048076]
[1768610050825,0.01048042,95416.0,95413.0,0.01048076]
[1768610051037,0.01048042,95416.0,95413.0,1e-08]
[1768610051674,0.01048031,95417.0,95413.0,0.06288438]
[1768610051879,0.01048031,95417.0,95413.0,0.06288449]
[1768610052089,0.01048031,95417.0,95413.0,0.01048076]
[1768610052337,0.01048031,95417.0,95414.0,0.01048064]
[1768610052754,0.06288195,95417.0,95413.0,0.01048076]
[1768610052961,0.01048042,95416.0,95413.0,0.01048076]
[1768610053590,0.01048031,95417.0,95413.0,0.06288444]
[1768610053814,0.01048042,95416.0,95413.0,0.01048076]
[1768610054908,0.01048042,95416.0,95413.0,1e-08]
[1768610055324,0.06288275,95416.0,95413.0,1e-08]
[1768610055657,0.01048042,95416.0,95413.0,1e-08]
[1768610055836,0.06288268,95416.0,95413.0,1e-08]
[1768610056214,0.01048042,95416.0,95413.0,1e-08]
[1768610056428,0.06288259,95416.0,95413.0,1e-08]
[1768610056629,0.01048042,95416.0,95413.0,1e-08]
[1768610057277,0.06288274,95416.0,95413.0,1e-08]
[1768610058708,0.01048042,95416.0,95413.0,1e-08]
[1768610059608,0.06288267,95416.0,95413.0,1e-08]
[1768610060027,0.01048042,95416.0,95413.0,1e-08]
[1768610061042,0.01040706,95416.0,95413.0,1e-08]
[1768610061746,0.06280956,95416.0,95413.0,1e-08]
[1768610062386,0.06280962,95416.0,95413.0,1e-08]
[1768610062574,0.0524032,95415.0,95413.0,1e-08]
[1768610063156,0.06280928,95416.0,95413.0,1e-08]
[1768610063313,0.01040706,95416.0,95413.0,1e-08]
[1768610063913,0.06280936,95416.0,95413.0,1e-08]
[1768610064119,0.05240321,95414.0,95413.0,1e-08]
[1768610064250,0.06280936,95416.0,95413.0,1e-08]
[1768610064455,0.06280939,95416.0,95413.0,1e-08]
[1768610065356,0.05240321,95414.0,95413.0,1e-08]
[1768610065572,0.06280964,95416.0,95413.0,1e-08]
[1768610065992,0.0104813,95408.0,95400.0,0.01048218]
[1768610066246,0.01048119,95409.0,95398.0,0.06289389]
[1768610066247,0.05240935,95403.0,95398.0,0.06289389]
[1768610066457,0.01048196,95402.0,95398.0,0.0104824]
[1768610066657,0.06289183,95402.0,95398.0,0.0104824]
[1768610066826,0.06289179,95402.0,95398.0,0.0104824]
[1768610067071,0.01048196,95402.0,95398.0,0.0104824]
[1768610067272,0.01048196,95402.0,95397.0,0.0712825]
[1768610067426,0.01048196,95402.0,95398.0,0.0104824]
[1768610068043,0.06289192,95402.0,95398.0,0.0104824]
[1768610068417,0.06289192,95402.0,95399.0,0.0001749]
[1768610068622,0.01048196,95402.0,95399.0,0.0001749]
[1768610069540,0.01048196,95402.0,95399.0,0.01065719]
[1768610070024,0.01048174,95404.0,95399.0,0.06306855]
[1768610070233,0.01048174,95404.0,95400.0,0.01048218]
[1768610071660,0.01048196,95402.0,95399.0,0.0001295]
[1768610073144,0.0628919,95402.0,95399.0,0.0001295]
[1768610073748,0.01048196,95402.0,95399.0,0.0001295]
[1768610074295,0.01048196,95402.0,95399.0,0.01061179]
[1768610075380,0.01048174,95404.0,95399.0,0.01061179]
[1768610075808,0.01048174,95404.0,95399.0,0.06302285]
[1768610076226,0.01048174,95404.0,95399.0,0.06297745]
[1768610076432,0.01048174,95404.0,95400.0,0.01048218]
[1768610076660,0.06289067,95404.0,95400.0,0.01048218]
[1768610077081,0.01048185,95403.0,95400.0,0.01048218]
[1768610077499,0.01048185,95403.0,95399.0,0.06297745]
[1768610077500,0.01048196,95402.0,95399.0,0.01052099]
[1768610077716,0.01048196,95402.0,95399.0,3.87e-05]
[1768610078134,0.01048185,95403.0,95399.0,0.01052099]
[1768610079224,0.01048185,95403.0,95400.0,0.01048218]
[1768610079438,0.01048174,95404.0,95400.0,0.01048218]
[1768610079772,0.01048174,95404.0,95400.0,0.062893]
[1768610080368,0.01048174,95404.0,95401.0,0.01048207]
[1768610081320,0.01048174,95404.0,95399.0,0.01052099]
[1768610081548,0.01048185,95403.0,95399.0,0.01052099]
[1768610081922,0.06289152,95403.0,95399.0,0.01052099]
[1768610082126,0.01048185,95403.0,95399.0,0.0104756]
[1768610082336,0.01048185,95403.0,95399.0,0.062887]
[1768610082934,0.01048185,95403.0,95399.0,0.0104756]
[1768610083856,0.06289116,95403.0,95399.0,0.0104756]
[1768610085431,0.06289242,95401.0,95397.0,0.0104825]
[1768610085851,0.01048218,95400.0,95397.0,0.0104825]
[1768610086280,0.01048218,95400.0,95397.0,0.01043711]
[1768610087100,0.01048218,95400.0,95397.0,0.01055079]
[1768610087508,0.0628931,95400.0,95397.0,0.01055079]
[1768610087709,0.01048218,95400.0,95397.0,0.00011368]
[1768610088506,0.01048218,95400.0,95395.0,0.0001603]
[1768610088507,0.0104824,95398.0,95395.0,0.0001603]
[1768610088741,0.05241306,95397.0,95395.0,0.00027406]
[1768610089303,0.0104824,95398.0,95395.0,0.00027406]
[1768610090269,0.06289319,95400.0,95395.0,0.06317035]
[1768610090480,0.0104824,95398.0,95395.0,0.00027406]
[1768610091068,0.06289472,95398.0,95395.0,0.00027406]
[1768610091456,0.0104824,95398.0,95395.0,0.00027406]
[1768610091658,0.05241261,95397.0,95395.0,0.00027406]
[1768610091886,0.0104824,95398.0,95395.0,0.00027406]
[1768610092095,0.05241309,95396.0,95395.0,0.00027406]
[1768610092297,0.06289479,95398.0,95395.0,0.00027406]
[1768610092469,0.052413,95397.0,95395.0,0.00027406]
[1768610092675,0.06289479,95398.0,95395.0,0.00027406]
[1768610092966,0.06289484,95398.0,95395.0,0.00027406]
[1768610093332,0.0104824,95398.0,95395.0,0.00027406]
[1768610095496,0.0104824,95398.0,95395.0,0.01075678]
[1768610096080,0.06289481,95398.0,95395.0,0.00027406]
[1768610097360,0.0104824,95398.0,95395.0,0.00027406]
[1768610097592,0.06289482,95398.0,95395.0,0.00027406]
[1768610097814,0.0104824,95398.0,95395.0,0.00027406]
[1768610098540,0.06289453,95398.0,95395.0,0.00027406]
[1768610098765,0.05241257,95397.0,95395.0,0.00027406]
[1768610098998,0.05241256,95397.0,95395.0,0.00027406]
[1768610099418,0.06289455,95398.0,95395.0,0.00027406]
[1768610099615,0.0104824,95398.0,95395.0,0.00027406]
[1768610100458,0.06289451,95398.0,95395.0,0.00027406]
[1768610100907,0.05241309,95396.0,95395.0,0.00027406]
[1768610101778,0.05241325,95396.0,95394.0,0.127]
[1768610101953,0.05241364,95395.0,95394.0,0.12704717]
[1768610103203,0.05241324,95396.0,95394.0,0.12704717]
[1768610103422,0.05241364,95395.0,95394.0,4.717e-05]
[1768610104007,0.05241316,95396.0,95394.0,4.717e-05]
[1768610104211,0.06289518,95397.0,95394.0,4.717e-05]
[1768610104421,0.0104825,95397.0,95394.0,4.717e-05]
[1768610104836,0.05241364,95395.0,95394.0,4.717e-05]
[1768610108574,0.05241309,95396.0,95394.0,4.717e-05]
[1768610109036,0.05241364,95395.0,95394.0,4.717e-05]
[1768610109313,0.05241323,95396.0,95394.0,4.717e-05]
[1768610109499,0.0104825,95397.0,95394.0,4.717e-05]
[1768610109702,0.06289516,95397.0,95394.0,4.717e-05]
[1768610111157,0.05241309,95396.0,95394.0,4.717e-05]
[1768610111363,0.06289516,95397.0,95394.0,4.717e-05]
[1768610112612,0.05241317,95396.0,95394.0,4.717e-05]
[1768610112821,0.05241364,95395.0,95394.0,4.717e-05]
[1768610113895,0.0524175,95388.0,95386.0,0.1271603]
[1768610114101,0.00010881,95388.0,95386.0,0.1271603]
[1768610114308,0.00010881,95388.0,95386.0,0.0001603]
[1768610116288,0.05241804,95387.0,95386.0,0.0001603]
[1768610116716,0.05252684,95388.0,95386.0,0.0001603]
[1768610116888,0.00010881,95388.0,95386.0,0.0001603]
[1768610117089,0.05241804,95387.0,95386.0,0.0001603]
[1768610117874,0.05252642,95388.0,95386.0,0.0001603]
[1768610118534,0.00010881,95388.0,95386.0,0.0001603]
[1768610122353,0.01048404,95383.0,95368.0,0.04973864]
[1768610122557,0.01048404,95383.0,95351.0,0.1548506]
[1768610122558,0.01048261,95396.0,95391.0,0.01048316]
[1768610122754,0.01048261,95396.0,95388.0,0.05241706]
[1768610122755,0.05241434,95394.0,95388.0,0.05241706]
[1768610122955,0.01048283,95394.0,95391.0,0.01048316]
[1768610123181,0.05241227,95398.0,95391.0,0.01048316]
[1768610123182,0.01048218,95400.0,95393.0,0.01048294]
[1768610123377,0.01048218,95400.0,95392.0,0.06289786]
[1768610123378,0.0104825,95397.0,95392.0,0.06289786]
[1768610123612,0.01048272,95395.0,95392.0,0.01048305]
[1768610124023,0.01048272,95395.0,95391.0,0.01048316]
[1768610124176,0.06289666,95395.0,95391.0,0.01048316]
[1768610124417,0.01048261,95396.0,95392.0,0.01048305]
[1768610124602,0.01048261,95396.0,95393.0,0.01048294]
[1768610124777,0.0104825,95397.0,95394.0,0.01048283]
[1768610125316,0.01048272,95395.0,95391.0,0.01048316]
[1768610125523,0.01048261,95396.0,95392.0,0.01048305]
[1768610126158,0.06289607,95396.0,95392.0,0.01048305]
[1768610126360,0.01048272,95395.0,95390.0,0.01048327]
[1768610126582,0.05241432,95394.0,95390.0,0.01048327]
[1768610126782,0.01048294,95393.0,95390.0,0.01048327]
[1768610127259,0.01048294,95393.0,95389.0,0.01048338]
[1768610127644,0.01048305,95392.0,95388.0,0.01062514]
[1768610127852,0.01048316,95391.0,95388.0,0.00014165]
[1768610128025,0.01048316,95391.0,95388.0,0.01062514]
[1768610128231,0.01048305,95392.0,95388.0,0.01062514]
[1768610129189,0.01048294,95393.0,95389.0,0.01048338]
[1768610129331,0.01048294,95393.0,95389.0,0.0629003]
[1768610129527,0.01048294,95393.0,95389.0,0.01048338]
[1768610129747,0.01048283,95394.0,95390.0,0.06289943]
[1768610129977,0.01048294,95393.0,95390.0,0.01048327]
[1768610130334,0.01048283,95394.0,95390.0,0.01048327]
[1768610130537,0.01048272,95395.0,95391.0,0.06289898]
[1768610131099,0.01048272,95395.0,95391.0,0.0628989]
[1768610131498,0.01048272,95395.0,95391.0,0.01048316]
[1768610131681,0.01048283,95394.0,95390.0,0.01048327]
[1768610132305,0.06289792,95393.0,95389.0,0.01048338]
[1768610132517,0.01048316,95391.0,95388.0,0.00014165]
[1768610132747,0.06289919,95391.0,95388.0,0.00014165]
[1768610133950,0.01048316,95391.0,95388.0,0.00014165]
[1768610134357,0.01048283,95394.0,95388.0,0.01062514]
[1768610134539,0.01048283,95394.0,95389.0,0.05241646]
[1768610134742,0.01048283,95394.0,95389.0,0.05241649]
[1768610134937,0.01048283,95394.0,95391.0,0.01048316]
[1768610135407,0.01048272,95395.0,95391.0,0.01048316]
[1768610135877,0.01048283,95394.0,95391.0,0.01048316]
[1768610139293,0.01048272,95395.0,95391.0,0.01048316]
[1768610139489,0.01048272,95395.0,95392.0,0.01048305]
[1768610139716,0.06289525,95397.0,95392.0,0.01048305]
[1768610139915,0.01048261,95396.0,95392.0,0.01048305]
[1768610140222,0.0104825,95397.0,95393.0,0.01048294]
[1768610140638,0.0104825,95397.0,95393.0,0.06289729]
[1768610141088,0.0104825,95397.0,95393.0,0.01048294]
[1768610141316,0.0104825,95397.0,95394.0,0.01048283]
[1768610142270,0.06289518,95397.0,95393.0,0.01048294]
[1768610142456,0.22012066,95403.0,95390.0,0.01048327]
[1768610142457,0.01048283,95394.0,95390.0,0.01048327]
[1768610142695,0.01048272,95395.0,95392.0,0.01048305]
[1768610142899,0.01048272,95395.0,95391.0,0.01048316]
[1768610143108,0.01048283,95394.0,95391.0,0.01048316]
[1768610143516,0.06289725,95394.0,95390.0,0.01048327]
[1768610144203,0.06289725,95394.0,95391.0,0.01048316]
[1768610144204,0.01048283,95394.0,95391.0,0.01048316]
[1768610144407,0.01048294,95393.0,95390.0,0.01048327]
[1768610144839,0.06289797,95393.0,95389.0,0.01048338]
[1768610145253,0.01048305,95392.0,95389.0,0.01048338]
[1768610146614,0.01048294,95393.0,95389.0,0.01048338]
[1768610146615,0.01048294,95393.0,95389.0,0.06290028]
[1768610146819,0.06289834,95392.0,95388.0,0.00014165]
[1768610146995,0.01048316,95391.0,95388.0,0.00014165]
[1768610147806,0.05241694,95389.0,95388.0,0.00014165]
[1768610148006,0.05241677,95390.0,95388.0,0.00014165]
[1768610149182,0.06289918,95391.0,95388.0,0.00014165]
[1768610149331,0.01048316,95391.0,95388.0,0.00014165]
[1768610149761,0.01048305,95392.0,95388.0,0.01062514]
[1768610151104,0.01048316,95391.0,95388.0,0.00014165]
[1768610151989,0.06289902,95391.0,95388.0,0.00014165]
[1768610152550,0.01048305,95392.0,95388.0,0.01062514]
[1768610152784,0.01048316,95391.0,95388.0,0.01062514]
[1768610153016,0.01048305,95392.0,95388.0,0.01062514]
[1768610153254,0.01048316,95391.0,95388.0,0.01062514]
[1768610154680,0.01048316,95391.0,95388.0,0.00014165]
[1768610155333,0.01048316,95391.0,95388.0,0.01062514]
[1768610155534,0.01048283,95394.0,95388.0,0.01062514]
[1768610155535,0.01048283,95394.0,95390.0,0.01048327]
[1768610155870,0.01048283,95394.0,95390.0,0.06289959]
[1768610156623,0.01048294,95393.0,95389.0,0.01048338]
[1768610156828,0.06289847,95392.0,95388.0,0.01062514]
[1768610157123,0.01048316,95391.0,95388.0,0.00014165]
[1768610158572,0.06289903,95391.0,95388.0,0.00014165]
[1768610158785,0.01048316,95391.0,95388.0,0.00014165]
[1768610158981,0.01048316,95391.0,95388.0,0.01062514]
[1768610159292,0.05241639,95390.0,95388.0,0.00014165]
[1768610159891,0.05241694,95389.0,95388.0,0.00014165]
[1768610160065,0.06289903,95391.0,95388.0,0.00014165]
[1768610160273,0.01048316,95391.0,95388.0,0.00014165]
[1768610160478,0.01048316,95391.0,95388.0,0.01062514]
[1768610161237,0.01048305,95392.0,95388.0,0.01062514]
[1768610161999,0.06289707,95394.0,95390.0,0.01048327]
[1768610162199,0.01048294,95393.0,95390.0,0.01048327]
[1768610163506,0.0628994,95391.0,95388.0,0.00014165]
[1768610163744,0.01048316,95391.0,95388.0,0.01062514]
[1768610164133,0.01048305,95392.0,95388.0,0.06304249]
[1768610164338,0.01048294,95393.0,95389.0,0.06290015]
[1768610164546,0.01048294,95393.0,95390.0,0.01048327]
[1768610165856,0.00948022,95393.0,95390.0,0.01048327]
[1768610166081,0.06189504,95393.0,95389.0,0.01048338]
[1768610166308,0.06189504,95393.0,95388.0,0.06304246]
[1768610166309,0.06289875,95392.0,95388.0,0.01062514]
[1768610166722,0.01048316,95391.0,95388.0,0.00014165]
[1768610166918,0.01048305,95392.0,95388.0,0.00014165]
[1768610167333,0.001,95393.0,95390.0,0.06289927]
[1768610167545,0.001,95393.0,95390.0,0.01048327]
[1768610168255,0.06289706,95394.0,95390.0,0.01048327]
[1768610168430,0.01048283,95394.0,95390.0,0.01048327]
[1768610169022,0.01048283,95394.0,95390.0,0.06289953]
[1768610169290,0.06289727,95394.0,95390.0,0.01048327]
[1768610169466,0.01048283,95394.0,95390.0,0.01048327]
[1768610169667,0.01048272,95395.0,95391.0,0.01048316]
[1768610170750,0.06289637,95395.0,95391.0,0.01048316]
[1768610170949,0.01048294,95393.0,95390.0,0.01048327]
[1768610171459,0.01048305,95392.0,95388.0,0.01062514]
[1768610171669,0.01048294,95393.0,95389.0,0.06290027]
[1768610171813,0.01048283,95394.0,95390.0,0.01048327]
[1768610172196,0.01048283,95394.0,95390.0,0.06289957]
[1768610172626,0.01048283,95394.0,95390.0,0.01048327]
[1768610172836,0.01048294,95393.0,95390.0,0.01048327]
[1768610173611,0.01048294,95393.0,95389.0,0.01048338]
[1768610174195,0.06289748,95394.0,95389.0,0.01048338]
[1768610174196,0.01048283,95394.0,95390.0,0.01048327]
[1768610174797,0.01048294,95393.0,95390.0,0.01048327]
[1768610175015,0.01048294,95393.0,95388.0,0.01062514]
[1768610175428,0.01048272,95395.0,95390.0,0.01048327]
[1768610175625,0.01048272,95395.0,95390.0,0.06289921]
[1768610176215,0.01048272,95395.0,95391.0,0.01048316]
[1768610177027,0.01048272,95395.0,95391.0,0.06289897]
[1768610177836,0.01048272,95395.0,95392.0,0.01048305]
[1768610178041,0.06289515,95397.0,95392.0,0.06289829]
[1768610178235,0.01048272,95395.0,95391.0,0.01048316]
[1768610178481,0.01048272,95395.0,95391.0,0.06289882]
[1768610178686,0.01048283,95394.0,95391.0,0.01048316]
[1768610179629,0.01048272,95395.0,95391.0,0.06289897]
[1768610179771,0.01048272,95395.0,95391.0,0.01048316]
[1768610179977,0.01048261,95396.0,95392.0,0.06289832]
[1768610180157,0.01048261,95396.0,95392.0,0.01048305]
[1768610180607,0.01048261,95396.0,95392.0,0.01040414]
[1768610180948,0.01048141,95407.0,95398.0,0.05621134]
[1768610181232,0.0104813,95408.0,95404.0,0.06289034]
[1768610181450,0.00048495,95409.0,95405.0,0.01040272]
[1768610181656,0.01096614,95409.0,95404.0,0.01048174]
[1768610181862,0.01048141,95407.0,95403.0,0.00989267]
[1768610182007,0.01048152,95406.0,95402.0,0.06289169]
[1768610182412,0.01048152,95406.0,95402.0,0.01048196]
[1768610182644,0.01048174,95404.0,95400.0,0.01048218]
[1768610182909,0.01048174,95404.0,95401.0,0.01048207]
[1768610183113,0.06289001,95405.0,95402.0,0.01048196]
[1768610183114,0.01048163,95405.0,95402.0,0.01048196]
[1768610183718,0.01048163,95405.0,95401.0,0.01048207]
[1768610184114,0.01048163,95405.0,95402.0,0.01048196]
[1768610187306,0.01048174,95404.0,95401.0,0.01048207]
[1768610187478,0.01048174,95404.0,95399.0,0.01048229]
[1768610187665,0.01039109,95403.0,95399.0,0.01048229]
[1768610187873,0.0628004,95403.0,95399.0,0.01048229]
[1768610188073,0.01039109,95403.0,95399.0,0.01048229]
[1768610188385,0.01039109,95403.0,95399.0,0.06289352]
[1768610188614,0.01039109,95403.0,95399.0,0.01048229]
[1768610189901,0.06280051,95403.0,95399.0,0.01048229]
[1768610190858,0.01039109,95403.0,95399.0,0.01048229]
[1768610193217,0.01048163,95405.0,95401.0,0.01048207]
[1768610193426,0.01048163,95405.0,95402.0,0.01048196]
[1768610193805,0.01048163,95405.0,95402.0,0.01040303]
[1768610194460,0.0628892,95406.0,95402.0,0.01040303]
[1768610194861,0.06288997,95405.0,95401.0,0.01048207]
[1768610195995,0.01048174,95404.0,95401.0,0.01048207]
[1768610196368,0.01048174,95404.0,95399.0,0.01048229]
[1768610196369,0.0628906,95404.0,95399.0,0.01048229]
[1768610196566,0.01048185,95403.0,95399.0,0.01048229]
[1768610196954,0.01048207,95401.0,95398.0,0.0104824]
[1768610197349,0.01048185,95403.0,95398.0,0.0104824]
[1768610197674,0.01048163,95405.0,95401.0,0.01048207]
[1768610197876,0.01048163,95405.0,95401.0,0.06289229]
[1768610198491,0.01048163,95405.0,95401.0,0.01048207]
[1768610199051,0.01048163,95405.0,95402.0,0.01048196]
[1768610199440,0.01048152,95406.0,95402.0,0.06289168]
[1768610200117,0.01048152,95406.0,95403.0,0.01048185]
[1768610200493,0.01048163,95405.0,95401.0,0.01048207]
[1768610200699,0.01048163,95405.0,95402.0,0.01048196]
[1768610200902,0.01148152,95406.0,95403.0,0.01048185]
[1768610201336,0.06288781,95408.0,95404.0,0.01048174]
[1768610201538,0.01048141,95407.0,95404.0,0.01048174]
[1768610202503,0.01048141,95407.0,95403.0,0.01048185]
[1768610202948,0.01039062,95407.0,95403.0,0.01048185]
[1768610203365,0.01039062,95407.0,95403.0,0.06289107]
[1768610204129,0.01048152,95406.0,95401.0,0.01048207]
[1768610204468,0.0628896,95406.0,95401.0,0.01048207]
[1768610204678,0.06289014,95405.0,95401.0,0.01048207]
[1768610205030,0.01048152,95406.0,95402.0,0.01048196]
[1768610205180,0.01048152,95406.0,95403.0,0.01048185]
[1768610205364,0.06337252,95409.0,95404.0,0.01048174]
[1768610205542,0.01096614,95409.0,95404.0,0.01048174]
[1768610205745,0.06288846,95407.0,95402.0,0.01048196]
[1768610206155,0.01048163,95405.0,95401.0,0.01048207]
[1768610206556,0.01048141,95407.0,95401.0,0.01048207]
[1768610206913,0.01048141,95407.0,95402.0,0.05240934]
[1768610207246,0.01048141,95407.0,95402.0,0.05240974]
[1768610207431,0.06288861,95407.0,95402.0,0.05240974]
[1768610207635,0.01048141,95407.0,95403.0,0.01048185]
[1768610207890,0.06288863,95407.0,95403.0,0.01048185]
[1768610208292,0.01048141,95407.0,95403.0,0.01048185]
[1768610209279,0.01048141,95407.0,95404.0,0.01048174]
[1768610210309,0.0104813,95408.0,95404.0,0.06289035]
[1768610210525,0.01048152,95406.0,95402.0,0.01048196]
[1768610210951,0.01048163,95405.0,95402.0,0.01048196]
[1768610211165,0.01048174,95404.0,95401.0,0.01048207]
[1768610211783,0.01048163,95405.0,95401.0,0.01048207]
[1768610211994,0.01048163,95405.0,95402.0,0.01048196]
[1768610212410,0.01048174,95404.0,95401.0,0.01048207]
[1768610212836,0.01048174,95404.0,95400.0,0.01048218]
[1768610212837,0.06289045,95404.0,95400.0,0.01048218]
[1768610213048,0.06289045,95404.0,95393.0,0.25798469]
[1768610213049,0.01048218,95400.0,95395.0,0.01048272]
[1768610213253,0.01048218,95400.0,95396.0,0.01048261]
[1768610213686,0.01048218,95400.0,95396.0,0.06289566]
[1768610213904,0.01048196,95402.0,95398.0,0.0104824]
[1768610214363,0.01048196,95402.0,95399.0,0.01048229]
[1768610215520,0.01048185,95403.0,95399.0,0.01048229]
[1768610215699,0.06289116,95403.0,95399.0,0.01048229]
[1768610216255,0.01048196,95402.0,95399.0,0.01048229]
[1768610216641,0.01048207,95401.0,95397.0,0.0104825]
[1768610216893,0.01048207,95401.0,95398.0,0.0104824]
[1768610217488,0.01148196,95402.0,95398.0,0.0104824]
[1768610217700,0.01048196,95402.0,95398.0,0.0104824]
[1768610218339,0.01048196,95402.0,95399.0,0.01048229]
[1768610219081,0.06289186,95402.0,95398.0,0.0104824]
[1768610219307,0.01048196,95402.0,95398.0,0.0104824]
[1768610220199,0.01048196,95402.0,95399.0,0.01048229]
[1768610220591,0.01048185,95403.0,95399.0,0.06289355]
[1768610221021,0.01048185,95403.0,95400.0,0.01048218]
[1768610221453,0.01048185,95403.0,95399.0,0.01048229]
[1768610222059,0.01048196,95402.0,95397.0,0.0104825]
[1768610222236,0.01048196,95402.0,95399.0,0.01048229]
[1768610222420,0.01048185,95403.0,95399.0,0.01048229]
[1768610223018,0.01048185,95403.0,95399.0,0.06289373]
[1768610224252,0.01048207,95401.0,95397.0,0.0104825]
[1768610224658,0.06289242,95401.0,95397.0,0.0104825]
[1768610225396,0.01048229,95399.0,95396.0,0.12704]
[1768610225543,0.01048218,95400.0,95396.0,0.13752261]
[1768610225957,0.01048207,95401.0,95398.0,0.0104824]
[1768610226585,0.01048196,95402.0,95398.0,0.0104824]
[1768610226902,0.01048196,95402.0,95399.0,0.01048229]
[1768610227104,0.01048185,95403.0,95399.0,0.01048229]
[1768610227302,0.01048185,95403.0,95399.0,0.06289358]
[1768610227726,0.01048185,95403.0,95400.0,0.01048218]
[1768610228472,0.01048196,95402.0,95398.0,0.0104824]
[1768610228692,0.01048185,95403.0,95400.0,0.01048218]
[1768610230297,0.06289116,95403.0,95399.0,0.01048229]
[1768610230496,0.01048185,95403.0,95399.0,0.01048229]
[1768610231560,0.01048185,95403.0,95400.0,0.01048218]
[1768610232135,0.06289113,95403.0,95400.0,0.01048218]
[1768610232335,0.01048185,95403.0,95400.0,0.01048218]
[1768610233061,0.01048185,95403.0,95399.0,0.01048229]
[1768610233062,0.06289125,95403.0,95399.0,0.01048229]
[1768610233567,0.01048185,95403.0,95399.0,0.01048229]
[1768610233969,0.06289112,95403.0,95399.0,0.01048229]
[1768610235065,0.06289112,95403.0,95400.0,0.04565793]
[1768610235271,0.00048495,95409.0,95406.0,0.01048152]
[1768610235730,0.00048495,95409.0,95407.0,0.05240696]
[1768610236132,0.00048495,95409.0,95406.0,0.062889]
[1768610236338,0.01096614,95409.0,95406.0,0.01048152]
[1768610237090,0.00048495,95409.0,95407.0,0.05240704]
[1768610237681,0.00048495,95409.0,95403.0,0.20963688]
[1768610237682,0.04682512,95437.0,95425.0,0.01047943]
[1768610237911,0.01047833,95435.0,95428.0,0.05239552]
[1768610238121,0.01047833,95435.0,95430.0,0.01047888]
[1768610238320,0.01047844,95434.0,95431.0,0.00770856]
[1768610238530,0.05238712,95444.0,95438.0,0.010478]
[1768610238739,0.05238584,95446.0,95438.0,0.06286801]
[1768610238947,0.03143499,95455.0,95446.0,0.01047712]
[1768610238948,0.01047668,95450.0,95446.0,0.01047712]
[1768610239207,0.01047646,95452.0,95449.0,0.01047679]
[1768610239448,0.127,95457.0,95449.0,0.01047679]
[1768610239449,0.05237803,95460.0,95449.0,0.05613472]
[1768610239652,0.01047548,95461.0,95454.0,0.01047625]
[1768610239862,0.01047548,95461.0,95452.0,0.01047646]
[1768610239863,0.01047603,95456.0,95452.0,0.01047646]
[1768610240062,0.01047614,95455.0,95451.0,0.01047657]
[1768610240494,0.01047603,95456.0,95452.0,0.01047646]
[1768610241149,0.01047592,95457.0,95453.0,0.01047636]
[1768610241591,0.01047592,95457.0,95454.0,0.01047625]
[1768610241833,0.01069591,95458.0,95455.0,0.01047614]
[1768610242297,0.01069591,95458.0,95452.0,0.01047646]
[1768610242498,0.01069591,95458.0,95454.0,0.01047625]